bitfinex-derivatives/quotes_BTCF0:USTF0_20210404
["timestamp","ask_amount","ask_price","bid_price","bid_amount"]
[1617499403968,3.0622,56760.0,56757.0,0.35475937]
[1617499404367,3.0622,56760.0,56756.0,0.06196648]
[1617499404368,3.0622,56760.0,56756.0,0.3547941]
[1617499404566,3.19298,56760.0,56756.0,0.3547941]
[1617499405370,1.0,56759.0,56756.0,0.3547941]
[1617499405773,1.0,56759.0,56754.0,0.35478355]
[1617499405971,0.10725655,56755.0,56754.0,0.35478355]
[1617499406171,0.10725655,56755.0,56752.0,0.35497597]
[1617499407573,0.10725655,56755.0,56751.0,0.35512903]
[1617499408474,0.10725655,56755.0,56753.0,0.0619677]
[1617499409076,0.10725655,56755.0,56752.0,0.35509188]
[1617499410882,0.10725655,56755.0,56751.0,0.3548776]
[1617499411079,0.36892385,56772.0,56754.0,4.5356]
[1617499411281,0.36887924,56773.0,56754.0,4.6845]
[1617499411480,0.36887924,56773.0,56771.0,1.0]
[1617499411679,0.36887924,56773.0,56771.0,1.12734]
[1617499411881,0.45088416,56777.0,56771.0,1.12734]
[1617499411882,0.3688397,56791.0,56772.0,3.5727]
[1617499412079,0.3688397,56791.0,56786.0,0.10725655]
[1617499412282,0.36880046,56795.0,56786.0,0.12875]
[1617499412683,3.2018,56796.0,56786.0,0.12875]
[1617499413085,3.57059434,56796.0,56786.0,0.12875]
[1617499413686,3.57059434,56796.0,56772.0,0.4594]
[1617499413687,0.36910992,56795.0,56777.0,0.35430201]
[1617499414089,0.10725655,56778.0,56775.0,0.10725655]
[1617499414487,0.10725655,56778.0,56775.0,0.46174495]
[1617499414887,0.10725655,56778.0,56776.0,0.35454625]
[1617499415489,0.10725655,56778.0,56775.0,0.46192651]
[1617499416689,0.10725655,56778.0,56776.0,0.3548969]
[1617499416888,0.36911981,56794.0,56776.0,0.5229169]
[1617499417091,0.36911981,56794.0,56777.0,1.0]
[1617499417490,0.3691031,56795.0,56785.0,3.5453]
[1617499418094,0.36909708,56798.0,56794.0,0.10725655]
[1617499419497,0.36909708,56798.0,56785.0,3.5453]
[1617499419498,0.36909534,56796.0,56785.0,3.5453]
[1617499419698,0.36909534,56796.0,56778.0,0.35542484]
[1617499419901,3.6661,56796.0,56779.0,0.35541591]
[1617499420099,3.6661,56796.0,56781.0,0.10725655]
[1617499420701,3.6661,56796.0,56782.0,0.41795807]
[1617499420998,3.6661,56796.0,56783.0,0.35624691]
[1617499421506,3.6661,56796.0,56782.0,0.41828954]
[1617499421703,0.3688625,56801.0,56782.0,0.41828954]
[1617499421900,0.3688625,56801.0,56787.0,3.0005]
[1617499422102,0.10725655,56788.0,56787.0,3.0005]
[1617499424106,0.10725655,56788.0,56787.0,3.10775655]
[1617499427710,0.27260655,56788.0,56787.0,3.10775655]
[1617499428814,0.10725655,56788.0,56787.0,3.10775655]
[1617499432422,0.10725655,56788.0,56787.0,0.10725655]
[1617499433723,0.10725655,56788.0,56787.0,0.24728655]
[1617499433924,0.10725655,56788.0,56787.0,3.10598655]
[1617499438828,0.10725655,56788.0,56787.0,0.24728655]
[1617499440032,0.10725655,56788.0,56787.0,0.10725655]
[1617499440631,0.10725655,56788.0,56781.0,0.35774367]
[1617499441032,0.10725655,56788.0,56782.0,0.35930473]
[1617499441632,0.10725655,56788.0,56781.0,0.35933401]
[1617499442232,3.3974,56795.0,56785.0,0.10725655]
[1617499442932,0.36975001,56794.0,56786.0,0.06194454]
[1617499443733,0.36975001,56794.0,56791.0,3.6253]
[1617499444332,0.10725655,56792.0,56791.0,3.6253]
[1617499454646,0.10725655,56792.0,56786.0,0.36056676]
[1617499455047,0.10725655,56792.0,56785.0,0.10725655]
[1617499455048,0.10725655,56792.0,56785.0,0.46845546]
[1617499455851,0.10725655,56792.0,56786.0,0.36141249]
[1617499456250,0.10725655,56792.0,56785.0,0.46896023]
[1617499456450,0.04531376,56786.0,56785.0,0.46896023]
[1617499458452,0.04331376,56786.0,56785.0,0.46896023]
[1617499459054,0.04131376,56786.0,56785.0,0.46896023]
[1617499459655,0.03931376,56786.0,56785.0,0.46896023]
[1617499461157,0.03731376,56786.0,56785.0,0.46896023]
[1617499461957,0.03531376,56786.0,56785.0,0.46896023]
[1617499462465,0.03331376,56786.0,56785.0,0.46896023]
[1617499462759,0.40485076,56786.0,56785.0,1.41944524]
[1617499463163,0.40285076,56786.0,56785.0,1.41944524]
[1617499463561,0.03131376,56786.0,56785.0,1.41944524]
[1617499464163,0.40284893,56786.0,56785.0,1.41944524]
[1617499464963,0.40084893,56786.0,56785.0,0.91386811]
[1617499465463,0.39884893,56786.0,56785.0,0.91386811]
[1617499466063,0.39684893,56786.0,56785.0,0.91386811]
[1617499466463,0.39684893,56786.0,56785.0,0.80661156]
[1617499466663,4.44994893,56786.0,56785.0,0.80661156]
[1617499466864,4.90409843,56786.0,56785.0,0.80661156]
[1617499467064,5.90209843,56786.0,56785.0,0.80661156]
[1617499467265,6.98992291,56786.0,56776.0,0.44330349]
[1617499467666,1.0,56777.0,56772.0,0.90268251]
[1617499467864,1.11035,56777.0,56772.0,0.90268251]
[1617499468066,1.11035,56777.0,56772.0,0.4594]
[1617499468067,1.45232709,56777.0,56772.0,0.4594]
[1617499468267,1.45232709,56777.0,56776.0,3.5689]
[1617499468466,1.55758364,56777.0,56776.0,3.83664655]
[1617499468666,0.21560655,56777.0,56776.0,3.83664655]
[1617499468865,0.10725655,56777.0,56776.0,3.83664655]
[1617499469067,0.825746,56777.0,56776.0,4.37257797]
[1617499469566,0.37096035,56779.0,56777.0,0.002]
[1617499469765,0.37096035,56779.0,56776.0,4.37257797]
[1617499469966,0.37096062,56780.0,56778.0,0.44182565]
[1617499470370,0.37096503,56781.0,56778.0,0.44182565]
[1617499470567,0.10725655,56779.0,56778.0,0.44182565]
[1617499470769,0.47822935,56779.0,56778.0,0.44182565]
[1617499471167,0.10725655,56779.0,56778.0,0.44182565]
[1617499471968,0.37095727,56782.0,56778.0,0.44182565]
[1617499472568,0.37095727,56782.0,56780.0,0.44150323]
[1617499473769,0.37085261,56783.0,56780.0,0.44150323]
[1617499474469,0.37085261,56783.0,56782.0,0.10725655]
[1617499475270,0.36685261,56783.0,56782.0,0.10725655]
[1617499475471,0.61413072,56783.0,56782.0,0.10725655]
[1617499475771,0.61213072,56783.0,56782.0,0.10725655]
[1617499476473,0.24710623,56787.0,56782.0,0.54765054]
[1617499476973,0.10725655,56788.0,56782.0,0.10725655]
[1617499477375,0.56048783,56788.0,56782.0,0.10725655]
[1617499479480,0.45324488,56786.0,56782.0,0.10725655]
[1617499479679,0.56172488,56786.0,56778.0,0.43956837]
[1617499479880,0.45324809,56784.0,56776.0,4.0083135]
[1617499480280,0.10848,56786.0,56776.0,3.5689]
[1617499480281,0.45322234,56783.0,56776.0,3.5689]
[1617499480480,0.10725655,56777.0,56776.0,3.67615655]
[1617499481682,0.45322234,56783.0,56776.0,3.67615655]
[1617499481882,0.45322234,56783.0,56776.0,3.84324655]
[1617499482083,0.45322203,56785.0,56776.0,4.28315269]
[1617499482483,0.10725655,56783.0,56778.0,0.43996932]
[1617499483285,0.10725655,56783.0,56780.0,0.44075732]
[1617499484289,0.10725655,56783.0,56781.0,0.440955]
[1617499484588,0.10725655,56783.0,56782.0,0.10725655]
[1617499486392,0.10725655,56783.0,56780.0,0.44082719]
[1617499486591,0.34392244,56783.0,56779.0,0.44105485]
[1617499486991,0.23665526,56782.0,56779.0,0.44105485]
[1617499487491,0.23665526,56782.0,56777.0,0.5339842]
[1617499487892,0.23665526,56782.0,56776.0,3.5689]
[1617499487893,0.23665526,56782.0,56776.0,4.01005714]
[1617499488293,0.23665526,56782.0,56776.0,3.5689]
[1617499488493,1.0,56776.0,56775.0,0.4412215]
[1617499488693,1.15268,56776.0,56775.0,0.4412215]
[1617499488896,0.15268,56776.0,56774.0,0.44142105]
[1617499489295,0.68998741,56775.0,56771.0,0.4681]
[1617499489496,1.68998741,56775.0,56771.0,0.4681]
[1617499489696,1.0,56773.0,56771.0,0.4681]
[1617499490397,1.4532946,56773.0,56771.0,0.4681]
[1617499490597,0.9532946,56773.0,56771.0,0.4681]
[1617499490798,1.15152506,56773.0,56771.0,0.4681]
[1617499490998,0.19823046,56773.0,56771.0,0.4681]
[1617499491800,0.19796695,56774.0,56771.0,0.4681]
[1617499492201,0.19793615,56773.0,56771.0,0.4681]
[1617499492601,0.19801454,56775.0,56771.0,0.4681]
[1617499493003,0.19802569,56776.0,56771.0,0.4681]
[1617499493804,1.10725655,56777.0,56771.0,0.4681]
[1617499495707,0.10725655,56777.0,56771.0,0.4681]
[1617499495910,1.0,56776.0,56771.0,0.4681]
[1617499496111,1.0,56775.0,56771.0,0.4681]
[1617499496310,1.0,56774.0,56771.0,0.4681]
[1617499496726,0.1978705,56775.0,56771.0,0.4681]
[1617499496918,1.19207848,56773.0,56771.0,0.4681]
[1617499497315,1.0,56773.0,56771.0,0.4681]
[1617499497517,1.2,56773.0,56771.0,0.4681]
[1617499497715,1.39205864,56773.0,56771.0,0.4681]
[1617499497920,2.89205864,56773.0,56771.0,0.4681]
[1617499498311,5.98055864,56773.0,56771.0,0.4681]
[1617499498716,6.866597,56773.0,56771.0,0.4681]
[1617499501020,11.866597,56773.0,56771.0,0.4681]
[1617499501223,2.28002146,56772.0,56771.0,0.4681]
[1617499501418,3.98002146,56772.0,56771.0,0.4681]
[1617499501617,4.40358931,56772.0,56771.0,0.4681]
[1617499502016,5.35038931,56772.0,56771.0,0.4681]
[1617499502214,5.35038931,56772.0,56771.0,0.46706683]
[1617499502415,4.77432819,56772.0,56771.0,0.46706683]
[1617499502715,4.77432819,56772.0,56742.0,0.4669]
[1617499502918,4.43132819,56772.0,56742.0,0.4669]
[1617499503116,1.0,56743.0,56742.0,0.4669]
[1617499503317,1.14303,56743.0,56742.0,0.4669]
[1617499504715,1.25028655,56743.0,56742.0,0.4669]
[1617499505518,0.25028655,56743.0,56742.0,0.4669]
[1617499505918,1.25028655,56743.0,56742.0,0.4669]
[1617499506120,0.25028655,56743.0,56742.0,0.4669]
[1617499506517,1.25028655,56743.0,56742.0,0.4669]
[1617499506721,2.75028655,56743.0,56742.0,0.4669]
[1617499507118,1.25028655,56743.0,56742.0,0.4669]
[1617499507519,2.75028655,56743.0,56742.0,0.4669]
[1617499510521,1.25028655,56743.0,56742.0,0.4669]
[1617499511324,0.25028655,56743.0,56742.0,0.4669]
[1617499511523,1.75028655,56743.0,56742.0,0.4669]
[1617499511726,2.75028655,56743.0,56742.0,0.4669]
[1617499514027,3.11927205,56743.0,56742.0,0.4669]
[1617499514627,3.11927205,56743.0,56722.0,0.364618]
[1617499514828,2.69855655,56723.0,56721.0,0.36478703]
[1617499515028,2.84974655,56723.0,56721.0,0.36478703]
[1617499515227,4.34974655,56723.0,56721.0,0.36478703]
[1617499515429,1.0,56722.0,56716.0,0.36503975]
[1617499515830,1.0,56718.0,56712.0,0.36517769]
[1617499516229,2.84974655,56723.0,56711.0,0.474]
[1617499516230,1.0,56721.0,56715.0,0.3651344]
[1617499516429,2.69855655,56723.0,56715.0,0.5112644]
[1617499516629,2.69855655,56723.0,56716.0,0.36495294]
[1617499516832,0.10725655,56717.0,56716.0,0.36495294]
[1617499517032,0.10725655,56717.0,56716.0,0.50770751]
[1617499517434,0.10725655,56717.0,56716.0,0.42683989]
[1617499518033,0.10725655,56717.0,56716.0,0.36483365]
[1617499518233,1.10725655,56717.0,56716.0,0.36483365]
[1617499518434,1.10725655,56717.0,56711.0,0.92008387]
[1617499518435,1.10725655,56717.0,56714.0,0.36547714]
[1617499518836,3.85515655,56717.0,56716.0,0.06201309]
[1617499519235,3.85515655,56717.0,56716.0,0.36548274]
[1617499519835,2.85515655,56717.0,56716.0,0.36548274]
[1617499520035,3.85515655,56717.0,56716.0,0.36548274]
[1617499520439,3.85515655,56717.0,56711.0,0.474]
[1617499521938,2.85515655,56717.0,56711.0,0.474]
[1617499524342,2.98128655,56717.0,56711.0,0.474]
[1617499525745,2.85515655,56717.0,56711.0,0.474]
[1617499528246,0.10725655,56717.0,56711.0,0.61438]
[1617499528845,0.10725655,56717.0,56716.0,0.10725655]
[1617499532852,0.10725655,56717.0,56716.0,0.27237655]
[1617499533250,0.10725655,56717.0,56716.0,0.16512]
[1617499533651,2.80415655,56717.0,56716.0,0.16512]
[1617499533851,2.80415655,56717.0,56711.0,0.474]
[1617499534453,1.0,56713.0,56711.0,0.474]
[1617499534753,1.0,56712.0,56711.0,0.474]
[1617499535154,1.0,56713.0,56711.0,0.474]
[1617499535754,1.0,56712.0,56711.0,0.474]
[1617499538058,2.5,56712.0,56711.0,0.474]
[1617499539260,3.06731006,56712.0,56711.0,0.474]
[1617499539459,2.86731006,56712.0,56711.0,0.474]
[1617499539659,7.86731006,56712.0,56711.0,0.474]
[1617499540059,7.86731006,56712.0,56711.0,0.47296599]
[1617499540261,8.31711617,56712.0,56711.0,0.47296599]
[1617499540458,8.51711617,56712.0,56711.0,0.47296599]
[1617499541059,2.51711617,56712.0,56711.0,0.47296599]
[1617499541461,8.51711617,56712.0,56711.0,0.47296599]
[1617499541662,3.88936893,56712.0,56711.0,0.47296599]
[1617499541860,3.68936893,56712.0,56711.0,0.47296599]
[1617499542666,2.86731006,56712.0,56711.0,0.47296599]
[1617499542867,3.52431006,56712.0,56711.0,0.47296599]
[1617499543162,3.157,56712.0,56711.0,0.47296599]
[1617499543765,4.7352,56712.0,56711.0,0.62094599]
[1617499543963,3.7352,56712.0,56711.0,0.62094599]
[1617499544163,0.657,56712.0,56711.0,0.62094599]
[1617499544563,1.657,56712.0,56711.0,0.62094599]
[1617499545966,0.657,56712.0,56711.0,0.62094599]
[1617499546367,1.657,56712.0,56711.0,0.47296599]
[1617499548873,5.3257,56712.0,56711.0,0.47296599]
[1617499549375,5.8257,56712.0,56711.0,0.47296599]
[1617499549777,6.8257,56712.0,56711.0,0.47296599]
[1617499550579,5.69006256,56712.0,56711.0,0.47193201]
[1617499550780,5.3257,56712.0,56711.0,0.47193201]
[1617499550979,1.0,56712.0,56711.0,0.57924201]
[1617499551179,1.0,56715.0,56711.0,0.57924201]
[1617499551578,0.47315342,56717.0,56711.0,0.57924201]
[1617499551979,0.47315342,56717.0,56715.0,2.6155]
[1617499552179,0.10725655,56717.0,56715.0,2.6155]
[1617499552581,0.10725655,56717.0,56711.0,0.57924201]
[1617499552779,0.10725655,56717.0,56711.0,0.47193201]
[1617499553581,1.0,56712.0,56711.0,0.47193201]
[1617499553782,1.11676,56712.0,56711.0,0.47193201]
[1617499556102,3.64336,56712.0,56711.0,0.47193201]
[1617499556302,4.64336,56712.0,56711.0,0.47193201]
[1617499556688,3.64336,56712.0,56711.0,0.47193201]
[1617499557890,1.0,56716.0,56711.0,0.47193201]
[1617499558092,0.10725655,56717.0,56711.0,0.47193201]
[1617499558093,0.3663989,56719.0,56711.0,0.59183201]
[1617499558291,0.3663989,56719.0,56715.0,1.0]
[1617499558490,0.89549478,56752.0,56715.0,1.0]
[1617499558491,0.36732187,56734.0,56715.0,1.0]
[1617499558689,0.36732187,56734.0,56718.0,1.0]
[1617499558891,1.0,56756.0,56711.0,0.59183201]
[1617499558892,0.44921225,56743.0,56729.0,1.0]
[1617499559090,0.44921225,56743.0,56730.0,1.0]
[1617499559289,0.44921225,56743.0,56729.0,3.33979]
[1617499559489,1.0,56745.0,56729.0,3.33979]
[1617499559490,0.44931751,56745.0,56729.0,3.33979]
[1617499559690,1.5,56759.0,56729.0,3.33979]
[1617499559891,1.0,56739.0,56729.0,3.33979]
[1617499560091,1.0,56739.0,56729.0,0.12659]
[1617499560290,1.0,56733.0,56711.0,0.47193201]
[1617499560491,3.4743,56741.0,56711.0,0.47193201]
[1617499560492,1.0,56735.0,56711.0,0.47193201]
[1617499560693,1.0,56735.0,56711.0,0.64331201]
[1617499560890,1.0,56737.0,56711.0,0.64331201]
[1617499561090,1.0,56738.0,56713.0,0.10725655]
[1617499561290,1.5,56737.0,56711.0,0.64331201]
[1617499561493,1.0,56720.0,56711.0,0.47193201]
[1617499561693,0.12034,56720.0,56711.0,0.47193201]
[1617499561895,1.0,56712.0,56711.0,0.47193201]
[1617499563098,2.60725655,56712.0,56711.0,0.47193201]
[1617499563697,1.10725655,56712.0,56711.0,0.47193201]
[1617499564696,0.10725655,56712.0,56711.0,0.47193201]
[1617499564897,1.10725655,56712.0,56711.0,0.47193201]
[1617499566399,0.10725655,56712.0,56711.0,0.47193201]
[1617499567000,1.10725655,56712.0,56711.0,0.47193201]
[1617499568304,0.10725655,56712.0,56711.0,0.47193201]
[1617499568505,1.10725655,56712.0,56711.0,0.47193201]
[1617499569102,0.10725655,56712.0,56711.0,0.47193201]
[1617499570305,0.34271458,56712.0,56711.0,0.47193201]
[1617499570503,1.34271458,56712.0,56711.0,0.47193201]
[1617499571307,0.34271458,56712.0,56711.0,0.47193201]
[1617499572307,1.34271458,56712.0,56711.0,0.47193201]
[1617499572908,0.34271458,56712.0,56711.0,0.47193201]
[1617499573307,1.34271458,56712.0,56711.0,0.47193201]
[1617499574712,0.34271458,56712.0,56711.0,0.47193201]
[1617499574916,0.34271458,56712.0,56711.0,0.62091201]
[1617499575331,0.34271458,56712.0,56711.0,4.15371201]
[1617499575726,1.0,56740.0,56711.0,4.15371201]
[1617499575727,0.45072474,56724.0,56711.0,4.15371201]
[1617499575931,0.45072474,56724.0,56711.0,5.15371201]
[1617499576116,0.57362174,56738.0,56711.0,5.15371201]
[1617499576117,0.57362174,56738.0,56720.0,1.0]
[1617499576118,0.45144581,56733.0,56720.0,1.0]
[1617499576515,0.45144581,56733.0,56721.0,1.0620149]
[1617499576713,0.45140107,56737.0,56721.0,1.0620149]
[1617499576912,0.45140107,56737.0,56721.0,1.0]
[1617499577117,0.45140107,56737.0,56727.0,0.10725655]
[1617499577315,0.45140107,56737.0,56727.0,0.25701655]
[1617499577914,0.23641569,56748.0,56727.0,0.25701655]
[1617499577915,0.45131858,56738.0,56727.0,0.25701655]
[1617499578338,0.45131858,56738.0,56737.0,3.2214]
[1617499579129,0.10725655,56738.0,56737.0,3.2214]
[1617499579525,0.34386675,56738.0,56737.0,3.2214]
[1617499581323,0.10725655,56738.0,56737.0,3.2214]
[1617499583923,0.10725655,56738.0,56737.0,4.2214]
[1617499585822,0.10725655,56738.0,56737.0,3.2214]
[1617499586036,0.10725655,56738.0,56737.0,4.2214]
[1617499586423,0.10725655,56738.0,56737.0,3.2214]
[1617499586824,0.10725655,56738.0,56737.0,4.2214]
[1617499587223,0.10725655,56738.0,56737.0,4.1714]
[1617499587425,0.36863419,56754.0,56737.0,4.1714]
[1617499587827,0.36862656,56756.0,56751.0,1.0]
[1617499588026,0.36862656,56756.0,56751.0,1.14364]
[1617499588238,0.45052082,56761.0,56751.0,1.14364]
[1617499588239,0.36859782,56761.0,56753.0,4.403]
[1617499588438,0.36859782,56761.0,56755.0,1.0]
[1617499588830,0.36856977,56767.0,56760.0,1.0]
[1617499589230,0.3685032,56772.0,56770.0,1.0]
[1617499589432,0.3685032,56772.0,56770.0,1.16893]
[1617499589633,0.3684769,56776.0,56771.0,2.5876]
[1617499590038,0.57312943,56795.0,56771.0,2.5876]
[1617499590039,0.36844893,56779.0,56771.0,2.5876]
[1617499590434,0.36844893,56779.0,56771.0,3.5876]
[1617499590631,0.36844893,56779.0,56774.0,1.0]
[1617499590929,0.36844893,56779.0,56771.0,2.5876]
[1617499590930,0.36844893,56779.0,56775.0,1.0]
[1617499591129,0.36844893,56779.0,56777.0,0.10725655]
[1617499591531,0.36850519,56780.0,56777.0,0.10725655]
[1617499591833,0.36850186,56779.0,56777.0,0.10725655]
[1617499592835,0.657,56778.0,56777.0,0.10725655]
[1617499593233,0.76425655,56778.0,56777.0,0.10725655]
[1617499593834,0.76425655,56778.0,56777.0,1.10725655]
[1617499594033,0.76425655,56778.0,56777.0,0.10725655]
[1617499594434,0.76425655,56778.0,56777.0,1.10725655]
[1617499594836,0.76425655,56778.0,56777.0,0.10725655]
[1617499595535,0.76425655,56778.0,56771.0,2.5876]
[1617499596138,0.76425655,56778.0,56773.0,1.0]
[1617499596539,0.76425655,56778.0,56771.0,3.5876]
[1617499596739,0.76425655,56778.0,56774.0,1.0]
[1617499597140,0.76425655,56778.0,56777.0,1.10725655]
[1617499598140,0.76425655,56778.0,56777.0,0.10725655]
[1617499599544,0.76425655,56778.0,56777.0,1.10725655]
[1617499600846,0.10725655,56778.0,56777.0,1.10725655]
[1617499601046,0.10725655,56778.0,56777.0,0.10725655]
[1617499601247,0.10725655,56778.0,56777.0,1.10725655]
[1617499602148,0.10725655,56778.0,56777.0,0.10725655]
[1617499602551,0.76425655,56778.0,56777.0,0.10725655]
[1617499604550,0.76425655,56778.0,56777.0,0.26876655]
[1617499604750,0.76425655,56778.0,56777.0,1.26876655]
[1617499605452,0.76425655,56778.0,56777.0,4.00036655]
[1617499606656,0.76425655,56778.0,56777.0,3.00036655]
[1617499607059,0.76425655,56778.0,56777.0,4.00036655]
[1617499609261,0.76425655,56778.0,56777.0,3.00036655]
[1617499609662,0.76425655,56778.0,56777.0,4.00036655]
[1617499610062,0.76425655,56778.0,56777.0,0.26876655]
[1617499610263,0.76425655,56778.0,56777.0,0.10725655]
[1617499610466,0.76425655,56778.0,56772.0,1.0]
[1617499610664,0.76425655,56778.0,56770.0,1.0]
[1617499610865,0.10725655,56778.0,56770.0,1.0]
[1617499611268,0.14537,56787.0,56777.0,0.10725655]
[1617499612066,0.14537,56787.0,56782.0,2.8051]
[1617499612266,0.14537,56787.0,56782.0,3.8051]
[1617499612467,0.657,56784.0,56782.0,3.8051]
[1617499612666,0.657,56784.0,56782.0,2.8051]
[1617499612867,0.657,56784.0,56783.0,1.0]
[1617499613267,0.76425655,56784.0,56783.0,1.10725655]
[1617499613867,0.76425655,56784.0,56783.0,0.10725655]
[1617499617470,0.76425655,56784.0,56783.0,1.10725655]
[1617499617870,0.76425655,56784.0,56783.0,4.20045655]
[1617499620972,0.10725655,56784.0,56783.0,4.20045655]
[1617499621173,0.36437995,56808.0,56783.0,4.20045655]
[1617499621372,0.36437995,56808.0,56799.0,0.10725655]
[1617499621574,0.36437995,56808.0,56791.0,1.0]
[1617499621773,0.36437995,56808.0,56790.0,1.0]
[1617499622176,0.657,56799.0,56790.0,1.0]
[1617499622375,0.657,56799.0,56792.0,1.0]
[1617499622576,0.657,56799.0,56793.0,1.0]
[1617499623075,0.657,56799.0,56795.0,1.0]
[1617499623278,0.657,56799.0,56798.0,0.10725655]
[1617499623476,0.657,56799.0,56794.0,1.0]
[1617499623677,0.657,56799.0,56790.0,1.0]
[1617499623877,0.657,56799.0,56784.0,1.0]
[1617499624277,0.657,56799.0,56785.0,1.0]
[1617499624477,0.657,56799.0,56783.0,3.0932]
[1617499624478,0.657,56799.0,56784.0,1.0]
[1617499625377,0.657,56799.0,56788.0,0.10725655]
[1617499625778,0.657,56799.0,56783.0,3.0932]
[1617499626177,0.657,56799.0,56778.0,1.0]
[1617499626379,0.657,56799.0,56782.0,2.5691]
[1617499626577,0.657,56799.0,56782.0,3.5691]
[1617499626777,0.657,56799.0,56789.0,1.0]
[1617499627181,0.657,56799.0,56784.0,1.0]
[1617499627381,0.10725655,56785.0,56783.0,1.0]
[1617499627584,0.10725655,56785.0,56782.0,3.67635655]
[1617499627784,0.10725655,56785.0,56782.0,2.67635655]
[1617499630686,0.10725655,56785.0,56782.0,3.67635655]
[1617499630886,0.10725655,56785.0,56782.0,2.67635655]
[1617499631686,0.10725655,56785.0,56783.0,1.0]
[1617499632086,0.10725655,56785.0,56782.0,2.67635655]
[1617499632087,0.10725655,56785.0,56784.0,1.0]
[1617499632386,0.76425655,56785.0,56784.0,1.0]
[1617499632986,0.657,56785.0,56784.0,1.0]
[1617499633386,0.76425655,56785.0,56784.0,1.0]
[1617499634386,0.76425655,56785.0,56782.0,2.67635655]
[1617499634587,0.76425655,56785.0,56782.0,3.67635655]
[1617499634788,0.76425655,56785.0,56782.0,2.67635655]
[1617499635388,0.76425655,56785.0,56782.0,2.5691]
[1617499636188,0.76425655,56785.0,56784.0,1.0]
[1617499636989,0.76425655,56785.0,56782.0,2.5691]
[1617499640995,0.10725655,56785.0,56782.0,2.5691]
[1617499641599,0.22234655,56785.0,56782.0,2.5691]
[1617499642596,0.657,56784.0,56782.0,2.5691]
[1617499644596,0.657,56784.0,56771.0,0.60095655]
[1617499644998,0.82333383,56783.0,56771.0,1.05140863]
[1617499645299,0.37050992,56775.0,56771.0,1.05140863]
[1617499645499,0.10725655,56772.0,56771.0,1.05140863]
[1617499646700,0.10725655,56772.0,56771.0,0.60095655]
[1617499647200,0.10725655,56772.0,56771.0,1.05124229]
[1617499648199,0.10725655,56772.0,56771.0,2.05124229]
[1617499648600,0.37053118,56779.0,56771.0,2.05124229]
[1617499648799,0.37053118,56779.0,56771.0,5.32286229]
[1617499649000,0.37053118,56779.0,56774.0,1.0]
[1617499649203,0.657,56784.0,56774.0,1.0]
[1617499649399,0.657,56784.0,56783.0,0.10725655]
[1617499649602,0.657,56784.0,56783.0,1.69605447]
[1617499650402,0.657,56784.0,56783.0,1.20607903]
[1617499650802,0.657,56784.0,56783.0,2.20607903]
[1617499651204,0.4777246,56792.0,56783.0,2.20607903]
[1617499651606,0.4777246,56792.0,56791.0,1.10725655]
[1617499651808,0.37046306,56793.0,56791.0,1.10725655]
[1617499652205,0.37046306,56793.0,56791.0,0.10725655]
[1617499652606,0.37048287,56794.0,56791.0,0.10725655]
[1617499652806,0.657,56792.0,56791.0,0.10725655]
[1617499653207,1.24678967,56792.0,56791.0,0.10725655]
[1617499655508,1.24678967,56792.0,56791.0,3.88675655]
[1617499655711,0.657,56792.0,56791.0,4.33536624]
[1617499656309,0.657,56792.0,56791.0,4.42826824]
[1617499659313,0.657,56792.0,56791.0,3.42826824]
[1617499659513,0.657,56792.0,56791.0,0.64876824]
[1617499659713,0.657,56792.0,56791.0,1.64876824]
[1617499660314,0.657,56792.0,56791.0,1.10725655]
[1617499660513,0.657,56792.0,56791.0,0.10725655]
[1617499660717,0.657,56792.0,56791.0,3.13805655]
[1617499660914,0.657,56792.0,56791.0,4.30032655]
[1617499661120,0.37011773,56796.0,56791.0,4.30032655]
[1617499661313,0.45234327,56801.0,56791.0,1.80949794]
[1617499661314,0.32710845,56801.0,56791.0,1.80949794]
[1617499661514,0.28510845,56801.0,56800.0,3.72235655]
[1617499661715,0.10725655,56802.0,56800.0,3.72235655]
[1617499661914,0.4522716,56813.0,56800.0,4.72235655]
[1617499662115,0.4522716,56813.0,56801.0,1.0]
[1617499662314,0.4521991,56816.0,56801.0,1.0]
[1617499662513,0.4521991,56816.0,56812.0,1.0]
[1617499662714,0.45216853,56819.0,56815.0,1.0]
[1617499663115,0.45212816,56825.0,56813.0,0.06190597]
[1617499663515,0.90415359,56853.0,56812.0,0.59026866]
[1617499663516,0.4520873,56829.0,56824.0,0.10725655]
[1617499663716,0.4520873,56829.0,56824.0,1.25077655]
[1617499663914,0.4520873,56829.0,56828.0,3.0252]
[1617499664115,0.57535582,56843.0,56828.0,3.0252]
[1617499664116,0.45206797,56832.0,56828.0,4.0252]
[1617499664517,0.57771211,56858.0,56824.0,0.25077655]
[1617499664518,0.45205732,56834.0,56824.0,0.25077655]
[1617499664718,0.45205732,56834.0,56831.0,2.51083361]
[1617499664916,0.45205732,56834.0,56831.0,3.51083361]
[1617499665118,0.45204481,56837.0,56833.0,1.0]
[1617499665517,0.7191015,56859.0,56831.0,2.51083361]
[1617499665518,0.4520323,56840.0,56838.0,1.0]
[1617499665717,0.4520323,56840.0,56838.0,1.11963]
[1617499665919,0.4520206,56842.0,56838.0,0.11963]
[1617499666117,0.4520206,56842.0,56839.0,1.0]
[1617499666519,0.51337905,56849.0,56844.0,0.00021411]
[1617499666919,0.10725655,56857.0,56848.0,2.7316]
[1617499666920,0.51337414,56853.0,56848.0,2.7316]
[1617499667119,0.51337414,56853.0,56847.0,1.0]
[1617499667320,0.51337414,56853.0,56844.0,0.00021411]
[1617499667321,0.10725655,56857.0,56848.0,1.0]
[1617499667518,0.10725655,56857.0,56856.0,0.10725655]
[1617499667719,0.10725655,56857.0,56856.0,1.24475655]
[1617499668821,0.10725655,56857.0,56856.0,0.24475655]
[1617499669022,0.10725655,56857.0,56856.0,0.10725655]
[1617499669223,0.10725655,56857.0,56856.0,1.10725655]
[1617499670023,0.03635655,56857.0,56856.0,1.10725655]
[1617499671925,0.50853467,56876.0,56856.0,1.10725655]
[1617499672332,0.50853467,56876.0,56873.0,1.0]
[1617499672526,0.50853203,56877.0,56873.0,1.1331]
[1617499672728,0.50853203,56877.0,56874.0,1.0]
[1617499672926,0.50853203,56877.0,56875.0,1.0]
[1617499673330,0.2,56899.0,56876.0,0.99896873]
[1617499673331,0.50851867,56879.0,56876.0,0.99896873]
[1617499673627,0.2,56899.0,56874.0,1.0]